[Event "Titled Tuesday Blitz January 10 Late 2023"]
[White "Adel, Sara"]
[Black "Gerbelli Neto, Eduardo"]
[WhiteFideId "10616764"]
[BlackFideId "2103281"]
[WhiteElo "1739"]
[BlackElo "2114"]
[Result "1/2-1/2"]
[Round "05"]
[TimeControl "180+2"]
[Date "2023.01.10"]
[WhiteClock "0:00:14"]
[BlackClock "0:00:04"]

1. e4 {[%clk 0:00:00]}  e5 {[%clk 0:00:00]} 2. Nf3 {[%clk 0:01:42]}  Nc6 {[%clk 0:02:58]} 3. Bc4 {[%clk 0:01:42]}  Nf6 {[%clk 0:02:56]} 4. d3 {[%clk 0:01:42]}  Bc5 {[%clk 0:02:56]} 5. c3 {[%clk 0:01:33]}  d6 {[%clk 0:02:55]} 6. Qe2 {[%clk 0:01:33]}  a5 {[%clk 0:02:56]} 7. Bb3 {[%clk 0:01:33]}  O-O {[%clk 0:02:56]} 8. a4 {[%clk 0:01:33]}  h6 {[%clk 0:02:57]} 9. Nbd2 {[%clk 0:01:33]}  Be6 {[%clk 0:02:55]} 10. Bc2 {[%clk 0:01:33]}  d5 {[%clk 0:02:53]} 11. exd5 {[%clk 0:01:33]}  Bxd5 {[%clk 0:02:52]} 12. O-O {[%clk 0:01:33]}  Re8 {[%clk 0:02:39]} 13. Re1 {[%clk 0:01:27]}  Qd7 {[%clk 0:02:39]} 14. Nf1 {[%clk 0:01:09]}  e4 {[%clk 0:02:19]} 15. dxe4 {[%clk 0:01:00]}  Bxe4 {[%clk 0:02:13]} 16. Be3 {[%clk 0:00:56]}  Bd6 {[%clk 0:02:07]} 17. Rad1 {[%clk 0:00:54]}  Qg4 {[%clk 0:01:57]} 18. Bxe4 {[%clk 0:00:44]}  Nxe4 {[%clk 0:01:49]} 19. Qb5 {[%clk 0:00:43]}  Rab8 {[%clk 0:01:49]} 20. Bd4 {[%clk 0:00:31]}  Nxd4 {[%clk 0:01:25]} 21. Nxd4 {[%clk 0:00:30]}  Qf4 {[%clk 0:01:12]} 22. f3 {[%clk 0:00:20]}  Nf6 {[%clk 0:00:45]} 23. Rxe8+ {[%clk 0:00:17]}  Rxe8 {[%clk 0:00:38]} 24. Qd3 {[%clk 0:00:17]}  Bc5 {[%clk 0:00:39]} 25. Rd2 {[%clk 0:00:17]}  Rd8 {[%clk 0:00:33]} 26. Kh1 {[%clk 0:00:17]}  Bxd4 {[%clk 0:00:33]} 27. cxd4 {[%clk 0:00:16]}  c5 {[%clk 0:00:31]} 28. d5 {[%clk 0:00:16]}  Rxd5 {[%clk 0:00:31]} 29. Qe2 {[%clk 0:00:16]}  Rxd2 {[%clk 0:00:31]} 30. Nxd2 {[%clk 0:00:16]}  Qxa4 {[%clk 0:00:28]} 31. h3 {[%clk 0:00:17]}  Qa1+ {[%clk 0:00:29]} 32. Kh2 {[%clk 0:00:17]}  Qxb2 {[%clk 0:00:28]} 33. Qd3 {[%clk 0:00:16]}  Qd4 {[%clk 0:00:29]} 34. Qc2 {[%clk 0:00:17]}  b5 {[%clk 0:00:28]} 35. Nb3 {[%clk 0:00:16]}  Qd6+ {[%clk 0:00:25]} 36. g3 {[%clk 0:00:16]}  c4 {[%clk 0:00:22]} 37. Nxa5 {[%clk 0:00:16]}  Qb4 {[%clk 0:00:22]} 38. Nc6 {[%clk 0:00:17]}  Qb3 {[%clk 0:00:22]} 39. Ne7+ {[%clk 0:00:16]}  Kf8 {[%clk 0:00:22]} 40. Qe2 {[%clk 0:00:16]}  Qd3 {[%clk 0:00:20]} 41. Qe5 {[%clk 0:00:16]}  Qd2+ {[%clk 0:00:19]} 42. Kh1 {[%clk 0:00:15]}  Qd1+ {[%clk 0:00:17]} 43. Kh2 {[%clk 0:00:15]}  Qxf3 {[%clk 0:00:11]} 44. Nf5 {[%clk 0:00:15]}  Qf2+ {[%clk 0:00:08]} 45. Kh1 {[%clk 0:00:15]}  Qf1+ {[%clk 0:00:05]} 46. Kh2 {[%clk 0:00:15]}  Qf2+ {[%clk 0:00:05]} 47. Kh1 {[%clk 0:00:15]}  Qf1+ {[%clk 0:00:05]} 48. Kh2 {[%clk 0:00:14]}  Qf2+ {[%clk 0:00:04]} 1/2-1/2


[Site "https://www.chess.com"]

[Event "Titled Tuesday Blitz January 10 Late 2023"]
[White "Harish, Neeraj"]
[Black "Skaric, Djuro"]
[WhiteFideId "30958130"]
[BlackFideId "934569"]
[WhiteElo "2232"]
[BlackElo "2334"]
[Result "0-1"]
[Round "05"]
[TimeControl "180+2"]
[Date "2023.01.10"]
[WhiteClock "0:00:03"]
[BlackClock "0:01:12"]

1. e4 {[%clk 0:00:00]}  d6 {[%clk 0:00:00]} 2. d4 {[%clk 0:02:58]}  Nf6 {[%clk 0:03:00]} 3. Nc3 {[%clk 0:02:58]}  g6 {[%clk 0:02:54]} 4. f4 {[%clk 0:02:55]}  Bg7 {[%clk 0:02:54]} 5. Nf3 {[%clk 0:02:41]}  O-O {[%clk 0:02:53]} 6. Bd3 {[%clk 0:02:41]}  Nc6 {[%clk 0:02:51]} 7. O-O {[%clk 0:02:41]}  e5 {[%clk 0:02:50]} 8. fxe5 {[%clk 0:02:41]}  dxe5 {[%clk 0:02:50]} 9. d5 {[%clk 0:02:26]}  Ne7 {[%clk 0:02:50]} 10. Ne2 {[%clk 0:02:26]}  Ne8 {[%clk 0:02:50]} 11. c4 {[%clk 0:02:05]}  h6 {[%clk 0:02:49]} 12. Nc3 {[%clk 0:02:00]}  f5 {[%clk 0:02:48]} 13. Be3 {[%clk 0:01:56]}  f4 {[%clk 0:02:47]} 14. Bf2 {[%clk 0:01:46]}  g5 {[%clk 0:02:47]} 15. c5 {[%clk 0:01:44]}  Ng6 {[%clk 0:02:47]} 16. Bc4 {[%clk 0:01:42]}  Kh8 {[%clk 0:02:44]} 17. d6 {[%clk 0:01:32]}  cxd6 {[%clk 0:02:44]} 18. Nb5 {[%clk 0:01:22]}  g4 {[%clk 0:02:43]} 19. Ne1 {[%clk 0:01:22]}  Bd7 {[%clk 0:02:41]} 20. Nxd6 {[%clk 0:01:19]}  Nxd6 {[%clk 0:02:11]} 21. Qxd6 {[%clk 0:01:18]}  Rf6 {[%clk 0:02:08]} 22. Qd3 {[%clk 0:01:15]}  Bc6 {[%clk 0:02:08]} 23. Bd5 {[%clk 0:01:07]}  Qc7 {[%clk 0:02:06]} 24. Rd1 {[%clk 0:00:59]}  Raf8 {[%clk 0:02:05]} 25. Nc2 {[%clk 0:00:49]}  Ne7 {[%clk 0:02:02]} 26. Nb4 {[%clk 0:00:45]}  Be8 {[%clk 0:01:57]} 27. Bb3 {[%clk 0:00:38]}  g3 {[%clk 0:01:44]} 28. hxg3 {[%clk 0:00:31]}  fxg3 {[%clk 0:01:26]} 29. Qxg3 {[%clk 0:00:28]}  Bb5 {[%clk 0:01:26]} 30. Nd3 {[%clk 0:00:23]}  Ng6 {[%clk 0:01:20]} 31. a4 {[%clk 0:00:07]}  Bxd3 {[%clk 0:01:13]} 32. Bc2 {[%clk 0:00:03]}  Bxc2 {[%clk 0:01:12]} 0-1


[Site "https://www.chess.com"]

[Event "Titled Tuesday Blitz January 10 Late 2023"]
[White "Winkels, Marcel"]
[Black "Alexikov, Alexander"]
[WhiteFideId "1003887"]
[BlackFideId "14103958"]
[WhiteElo "1960"]
[BlackElo "2209"]
[Result "0-1"]
[Round "05"]
[TimeControl "180+2"]
[Date "2023.01.10"]
[WhiteClock "0:00:06"]
[BlackClock "0:00:19"]

1. d4 {[%clk 0:00:00]}  Nf6 {[%clk 0:00:00]} 2. Bf4 {[%clk 0:03:00]}  g6 {[%clk 0:02:58]} 3. Nc3 {[%clk 0:02:58]}  Bg7 {[%clk 0:02:57]} 4. e4 {[%clk 0:02:57]}  d6 {[%clk 0:02:57]} 5. Qd2 {[%clk 0:02:56]}  O-O {[%clk 0:02:58]} 6. f3 {[%clk 0:02:55]}  Nc6 {[%clk 0:02:58]} 7. Nge2 {[%clk 0:02:54]}  e5 {[%clk 0:02:56]} 8. dxe5 {[%clk 0:02:41]}  Nxe5 {[%clk 0:02:54]} 9. O-O-O {[%clk 0:02:40]}  Re8 {[%clk 0:02:53]} 10. Bg5 {[%clk 0:02:22]}  Be6 {[%clk 0:02:51]} 11. h4 {[%clk 0:02:17]}  h5 {[%clk 0:02:39]} 12. Nd4 {[%clk 0:02:16]}  a6 {[%clk 0:02:36]} 13. g4 {[%clk 0:02:13]}  hxg4 {[%clk 0:02:24]} 14. h5 {[%clk 0:02:06]}  Bc4 {[%clk 0:02:19]} 15. Bxc4 {[%clk 0:02:05]}  Nxc4 {[%clk 0:01:48]} 16. Qh2 {[%clk 0:01:36]}  Re5 {[%clk 0:01:47]} 17. f4 {[%clk 0:01:21]}  Rxg5 {[%clk 0:01:13]} 18. fxg5 {[%clk 0:01:05]}  Nxh5 {[%clk 0:01:10]} 19. Nd5 {[%clk 0:01:03]}  Qxg5+ {[%clk 0:01:09]} 20. Kb1 {[%clk 0:00:57]}  c6 {[%clk 0:01:03]} 21. Nc3 {[%clk 0:00:53]}  Re8 {[%clk 0:01:03]} 22. Rhf1 {[%clk 0:00:50]}  c5 {[%clk 0:00:46]} 23. Qf2 {[%clk 0:00:33]}  Re7 {[%clk 0:00:41]} 24. Nd5 {[%clk 0:00:28]}  Rd7 {[%clk 0:00:39]} 25. Nb3 {[%clk 0:00:26]}  Ne5 {[%clk 0:00:37]} 26. Nd2 {[%clk 0:00:20]}  b5 {[%clk 0:00:34]} 27. c3 {[%clk 0:00:14]}  g3 {[%clk 0:00:33]} 28. Qg2 {[%clk 0:00:13]}  c4 {[%clk 0:00:31]} 29. Nf3 {[%clk 0:00:11]}  Nxf3 {[%clk 0:00:31]} 30. Qxf3 {[%clk 0:00:11]}  Be5 {[%clk 0:00:30]} 31. Ne3 {[%clk 0:00:11]}  Qf4 {[%clk 0:00:29]} 32. Qe2 {[%clk 0:00:09]}  Qg5 {[%clk 0:00:23]} 33. Ng4 {[%clk 0:00:08]}  Bf4 {[%clk 0:00:22]} 34. e5 {[%clk 0:00:07]}  Re7 {[%clk 0:00:22]} 35. Rxd6 {[%clk 0:00:06]}  Bxe5 {[%clk 0:00:19]} 0-1


[Site "https://www.chess.com"]

[Event "Titled Tuesday Blitz January 10 Late 2023"]
[White "Vasques, Antonio Pedro Freixial"]
[Black "Aung Thant Zin"]
[WhiteFideId "1908332"]
[BlackFideId "13000063"]
[WhiteElo "2214"]
[BlackElo "2268"]
[Result "0-1"]
[Round "05"]
[TimeControl "180+2"]
[Date "2023.01.10"]
[WhiteClock "0:00:47"]
[BlackClock "0:01:25"]

1. Nf3 {[%clk 0:00:00]}  d5 {[%clk 0:00:00]} 2. d4 {[%clk 0:02:54]}  Nf6 {[%clk 0:02:59]} 3. c4 {[%clk 0:02:50]}  e6 {[%clk 0:02:59]} 4. Nc3 {[%clk 0:02:50]}  Be7 {[%clk 0:02:59]} 5. Bg5 {[%clk 0:02:49]}  O-O {[%clk 0:02:59]} 6. e3 {[%clk 0:02:46]}  Ne4 {[%clk 0:02:57]} 7. Bxe7 {[%clk 0:02:43]}  Qxe7 {[%clk 0:02:57]} 8. cxd5 {[%clk 0:02:41]}  Nxc3 {[%clk 0:02:57]} 9. bxc3 {[%clk 0:02:38]}  exd5 {[%clk 0:02:57]} 10. Bd3 {[%clk 0:02:37]}  c6 {[%clk 0:02:58]} 11. h3 {[%clk 0:02:36]}  Nd7 {[%clk 0:02:57]} 12. O-O {[%clk 0:02:30]}  Re8 {[%clk 0:02:56]} 13. c4 {[%clk 0:02:30]}  dxc4 {[%clk 0:02:55]} 14. Bxc4 {[%clk 0:02:30]}  Nf6 {[%clk 0:02:54]} 15. Ne5 {[%clk 0:02:31]}  Be6 {[%clk 0:02:51]} 16. Bxe6 {[%clk 0:02:27]}  Qxe6 {[%clk 0:02:51]} 17. Qc2 {[%clk 0:02:21]}  Rac8 {[%clk 0:02:50]} 18. Rab1 {[%clk 0:02:18]}  b6 {[%clk 0:02:42]} 19. Rfc1 {[%clk 0:02:17]}  c5 {[%clk 0:02:42]} 20. Qa4 {[%clk 0:01:51]}  cxd4 {[%clk 0:02:37]} 21. exd4 {[%clk 0:01:40]}  Rcd8 {[%clk 0:02:33]} 22. Nc6 {[%clk 0:01:41]}  Rd7 {[%clk 0:02:15]} 23. Qb4 {[%clk 0:01:35]}  Nd5 {[%clk 0:02:08]} 24. Qd2 {[%clk 0:00:52]}  Qd6 {[%clk 0:01:43]} 25. Ne5 {[%clk 0:00:50]}  Rc7 {[%clk 0:01:30]} 26. Rc6 {[%clk 0:00:47]}  Rxc6 {[%clk 0:01:25]} 0-1


[Site "https://www.chess.com"]

[Event "Titled Tuesday Blitz January 10 Late 2023"]
[White "Abdyzhaparov, Aidar"]
[Black "Mitrovic, Darko R"]
[WhiteFideId "13800361"]
[BlackFideId "927023"]
[WhiteElo "1978"]
[BlackElo "2220"]
[Result "0-1"]
[Round "05"]
[TimeControl "180+2"]
[Date "2023.01.10"]
[WhiteClock "0:00:08"]
[BlackClock "0:00:05"]

1. Nf3 {[%clk 0:00:00]}  c5 {[%clk 0:00:00]} 2. c4 {[%clk 0:03:00]}  Nc6 {[%clk 0:02:56]} 3. d4 {[%clk 0:03:01]}  cxd4 {[%clk 0:02:54]} 4. Nxd4 {[%clk 0:03:01]}  Nf6 {[%clk 0:02:53]} 5. Nc3 {[%clk 0:03:02]}  g6 {[%clk 0:02:53]} 6. e4 {[%clk 0:03:02]}  d6 {[%clk 0:02:52]} 7. Be2 {[%clk 0:03:01]}  Bg7 {[%clk 0:02:49]} 8. Be3 {[%clk 0:03:01]}  O-O {[%clk 0:02:49]} 9. O-O {[%clk 0:03:00]}  Be6 {[%clk 0:02:49]} 10. Rc1 {[%clk 0:03:00]}  Nxd4 {[%clk 0:02:35]} 11. Bxd4 {[%clk 0:02:55]}  Nd7 {[%clk 0:02:30]} 12. Be3 {[%clk 0:02:54]}  b6 {[%clk 0:02:30]} 13. f4 {[%clk 0:02:21]}  Rc8 {[%clk 0:02:20]} 14. b3 {[%clk 0:02:19]}  Nc5 {[%clk 0:02:07]} 15. f5 {[%clk 0:02:10]}  Bd7 {[%clk 0:01:55]} 16. Bd3 {[%clk 0:02:09]}  Bc6 {[%clk 0:01:54]} 17. Nd5 {[%clk 0:01:45]}  Bxd5 {[%clk 0:01:52]} 18. exd5 {[%clk 0:01:42]}  Qd7 {[%clk 0:01:49]} 19. Bb1 {[%clk 0:01:40]}  b5 {[%clk 0:01:30]} 20. Qf3 {[%clk 0:01:38]}  a5 {[%clk 0:01:26]} 21. Qh3 {[%clk 0:01:01]}  a4 {[%clk 0:01:19]} 22. b4 {[%clk 0:00:50]}  Na6 {[%clk 0:00:22]} 23. fxg6 {[%clk 0:00:35]}  Qxh3 {[%clk 0:00:21]} 24. gxh3 {[%clk 0:00:31]}  hxg6 {[%clk 0:00:20]} 25. cxb5 {[%clk 0:00:25]}  Nxb4 {[%clk 0:00:16]} 26. b6 {[%clk 0:00:21]}  Nxd5 {[%clk 0:00:15]} 27. Bf2 {[%clk 0:00:20]}  Rb8 {[%clk 0:00:12]} 28. Be4 {[%clk 0:00:13]}  Nxb6 {[%clk 0:00:10]} 29. Rb1 {[%clk 0:00:12]}  Nd7 {[%clk 0:00:09]} 30. Rbc1 {[%clk 0:00:11]}  Nc5 {[%clk 0:00:09]} 31. Bc6 {[%clk 0:00:11]}  Rbc8 {[%clk 0:00:08]} 32. Bb5 {[%clk 0:00:11]}  a3 {[%clk 0:00:07]} 33. Bc4 {[%clk 0:00:08]}  Bb2 {[%clk 0:00:07]} 34. Rc2 {[%clk 0:00:06]}  Kg7 {[%clk 0:00:08]} 35. h4 {[%clk 0:00:04]}  Ne4 {[%clk 0:00:08]} 36. h5 {[%clk 0:00:03]}  Nxf2 {[%clk 0:00:07]} 37. Kxf2 {[%clk 0:00:02]}  e6 {[%clk 0:00:06]} 38. Ke2 {[%clk 0:00:02]}  d5 {[%clk 0:00:05]} 39. Bb3 {[%clk 0:00:02]}  Rxc2+ {[%clk 0:00:05]} 40. Bxc2 {[%clk 0:00:02]}  Rh8 {[%clk 0:00:05]} 41. Bb3 {[%clk 0:00:03]}  Rxh5 {[%clk 0:00:05]} 42. Rf2 {[%clk 0:00:02]}  Re5+ {[%clk 0:00:05]} 43. Kd3 {[%clk 0:00:03]}  Rh5 {[%clk 0:00:04]} 44. Rg2 {[%clk 0:00:03]}  Be5 {[%clk 0:00:05]} 45. Kc2 {[%clk 0:00:03]}  Rxh2 {[%clk 0:00:04]} 46. Rxh2 {[%clk 0:00:04]}  Bxh2 {[%clk 0:00:05]} 47. Ba4 {[%clk 0:00:04]}  Be5 {[%clk 0:00:05]} 48. Kb3 {[%clk 0:00:05]}  Bb2 {[%clk 0:00:05]} 49. Be8 {[%clk 0:00:05]}  Kf6 {[%clk 0:00:06]} 50. Kc2 {[%clk 0:00:05]}  Ke7 {[%clk 0:00:07]} 51. Ba4 {[%clk 0:00:05]}  f6 {[%clk 0:00:07]} 52. Kd3 {[%clk 0:00:05]}  e5 {[%clk 0:00:07]} 53. Ke3 {[%clk 0:00:06]}  Ke6 {[%clk 0:00:07]} 54. Bb3 {[%clk 0:00:06]}  f5 {[%clk 0:00:07]} 55. Kf3 {[%clk 0:00:06]}  e4+ {[%clk 0:00:07]} 56. Ke3 {[%clk 0:00:07]}  Ke5 {[%clk 0:00:06]} 57. Ke2 {[%clk 0:00:08]}  d4 {[%clk 0:00:06]} 58. Bc2 {[%clk 0:00:09]}  g5 {[%clk 0:00:07]} 59. Bb3 {[%clk 0:00:09]}  d3+ {[%clk 0:00:07]} 60. Kf2 {[%clk 0:00:10]}  Kf4 {[%clk 0:00:07]} 61. Be6 {[%clk 0:00:10]}  e3+ {[%clk 0:00:07]} 62. Ke1 {[%clk 0:00:10]}  Bc3+ {[%clk 0:00:07]} 63. Kf1 {[%clk 0:00:09]}  e2+ {[%clk 0:00:07]} 64. Kg2 {[%clk 0:00:07]}  e1=Q {[%clk 0:00:07]} 65. Bxf5 {[%clk 0:00:08]}  Qe2+ {[%clk 0:00:06]} 66. Kh3 {[%clk 0:00:09]}  Qf3+ {[%clk 0:00:06]} 67. Kh2 {[%clk 0:00:08]}  Qg3+ {[%clk 0:00:05]} 68. Kh1 {[%clk 0:00:08]}  Bd4 {[%clk 0:00:05]} 0-1


[Site "https://www.chess.com"]

[Event "Titled Tuesday Blitz January 10 Late 2023"]
[White "Soyunlu, Narmin"]
[Black "Rosenberg, Evan S"]
[WhiteFideId "13400843"]
[BlackFideId "2019299"]
[WhiteElo "2013"]
[BlackElo "1956"]
[Result "1-0"]
[Round "05"]
[TimeControl "180+2"]
[Date "2023.01.10"]
[WhiteClock "0:00:16"]
[BlackClock "0:00:03"]

1. d4 {[%clk 0:00:00]}  d5 {[%clk 0:00:00]} 2. c4 {[%clk 0:03:00]}  e6 {[%clk 0:02:59]} 3. cxd5 {[%clk 0:02:59]}  exd5 {[%clk 0:02:59]} 4. Nc3 {[%clk 0:02:58]}  c6 {[%clk 0:02:59]} 5. Qc2 {[%clk 0:02:59]}  Nf6 {[%clk 0:03:00]} 6. Bg5 {[%clk 0:02:59]}  Be7 {[%clk 0:02:34]} 7. e3 {[%clk 0:02:55]}  O-O {[%clk 0:02:31]} 8. Bd3 {[%clk 0:02:52]}  h6 {[%clk 0:02:29]} 9. Bh4 {[%clk 0:02:51]}  Re8 {[%clk 0:02:29]} 10. Nge2 {[%clk 0:02:51]}  Nh5 {[%clk 0:02:25]} 11. Bxe7 {[%clk 0:02:49]}  Qxe7 {[%clk 0:02:20]} 12. O-O {[%clk 0:02:45]}  Qg5 {[%clk 0:02:20]} 13. Ng3 {[%clk 0:02:45]}  Nxg3 {[%clk 0:02:05]} 14. hxg3 {[%clk 0:02:40]}  Nd7 {[%clk 0:01:56]} 15. e4 {[%clk 0:02:38]}  Nf6 {[%clk 0:01:44]} 16. e5 {[%clk 0:02:25]}  Ng4 {[%clk 0:01:39]} 17. Be2 {[%clk 0:02:12]}  Qh5 {[%clk 0:01:39]} 18. Bxg4 {[%clk 0:01:42]}  Bxg4 {[%clk 0:00:56]} 19. f3 {[%clk 0:01:41]}  Bf5 {[%clk 0:00:57]} 20. Qd2 {[%clk 0:01:33]}  Qg6 {[%clk 0:00:57]} 21. Kf2 {[%clk 0:01:33]}  f6 {[%clk 0:00:47]} 22. Rfe1 {[%clk 0:01:31]}  fxe5 {[%clk 0:00:45]} 23. dxe5 {[%clk 0:01:18]}  Be6 {[%clk 0:00:38]} 24. Ne2 {[%clk 0:01:19]}  c5 {[%clk 0:00:32]} 25. Nf4 {[%clk 0:01:15]}  Qf7 {[%clk 0:00:19]} 26. Rad1 {[%clk 0:01:15]}  d4 {[%clk 0:00:20]} 27. Nxe6 {[%clk 0:01:07]}  Qxe6 {[%clk 0:00:20]} 28. Qd3 {[%clk 0:01:05]}  Qxa2 {[%clk 0:00:19]} 29. Rd2 {[%clk 0:01:04]}  Qd5 {[%clk 0:00:19]} 30. f4 {[%clk 0:01:01]}  Re6 {[%clk 0:00:18]} 31. Qe4 {[%clk 0:00:49]}  Qxe4 {[%clk 0:00:18]} 32. Rxe4 {[%clk 0:00:37]}  Rae8 {[%clk 0:00:18]} 33. Rc2 {[%clk 0:00:38]}  b6 {[%clk 0:00:15]} 34. Rce2 {[%clk 0:00:38]}  Kf7 {[%clk 0:00:15]} 35. f5 {[%clk 0:00:38]}  Rc6 {[%clk 0:00:13]} 36. Kf3 {[%clk 0:00:38]}  Rd8 {[%clk 0:00:13]} 37. Rd2 {[%clk 0:00:33]}  Ke7 {[%clk 0:00:11]} 38. Kf4 {[%clk 0:00:32]}  Rd5 {[%clk 0:00:10]} 39. g4 {[%clk 0:00:30]}  a5 {[%clk 0:00:09]} 40. g5 {[%clk 0:00:27]}  hxg5+ {[%clk 0:00:08]} 41. Kxg5 {[%clk 0:00:20]}  a4 {[%clk 0:00:07]} 42. Kf4 {[%clk 0:00:20]}  b5 {[%clk 0:00:07]} 43. g4 {[%clk 0:00:18]}  b4 {[%clk 0:00:06]} 44. g5 {[%clk 0:00:15]}  a3 {[%clk 0:00:05]} 45. bxa3 {[%clk 0:00:15]}  b3 {[%clk 0:00:04]} 46. f6+ {[%clk 0:00:16]}  gxf6 {[%clk 0:00:03]} 47. exf6+ {[%clk 0:00:16]}  Kf7 {[%clk 0:00:03]} 48. Re7+ {[%clk 0:00:16]}  Kf8 {[%clk 0:00:03]} 49. Rh2 {[%clk 0:00:16]} 1-0


[Site "https://www.chess.com"]

[Event "Titled Tuesday Blitz January 10 Late 2023"]
[White "Kovacevic, Radmila"]
[Black "Curtis, John"]
[WhiteFideId "933171"]
[BlackFideId "3200256"]
[WhiteElo "2106"]
[BlackElo "2292"]
[Result "0-1"]
[Round "05"]
[TimeControl "180+2"]
[Date "2023.01.10"]
[WhiteClock "0:00:03"]
[BlackClock "0:00:05"]

1. e4 {[%clk 0:00:00]}  c5 {[%clk 0:00:00]} 2. Be2 {[%clk 0:02:57]}  Nc6 {[%clk 0:02:38]} 3. f4 {[%clk 0:02:55]}  e6 {[%clk 0:02:22]} 4. Nf3 {[%clk 0:02:55]}  a6 {[%clk 0:02:19]} 5. O-O {[%clk 0:02:54]}  Be7 {[%clk 0:02:15]} 6. a4 {[%clk 0:02:52]}  Rb8 {[%clk 0:02:13]} 7. c3 {[%clk 0:02:51]}  Nf6 {[%clk 0:02:09]} 8. d3 {[%clk 0:02:42]}  d6 {[%clk 0:02:02]} 9. Kh1 {[%clk 0:02:41]}  b5 {[%clk 0:01:53]} 10. axb5 {[%clk 0:02:40]}  axb5 {[%clk 0:01:44]} 11. Be3 {[%clk 0:02:35]}  O-O {[%clk 0:01:43]} 12. Nbd2 {[%clk 0:02:34]}  Bd7 {[%clk 0:01:33]} 13. d4 {[%clk 0:02:32]}  c4 {[%clk 0:01:30]} 14. h3 {[%clk 0:02:27]}  Ra8 {[%clk 0:01:13]} 15. g4 {[%clk 0:02:22]}  Rxa1 {[%clk 0:01:05]} 16. Qxa1 {[%clk 0:02:19]}  Qa8 {[%clk 0:00:59]} 17. Qb1 {[%clk 0:02:20]}  Qb7 {[%clk 0:00:58]} 18. Kh2 {[%clk 0:02:15]}  Ra8 {[%clk 0:00:52]} 19. g5 {[%clk 0:02:12]}  Ne8 {[%clk 0:00:50]} 20. h4 {[%clk 0:02:09]}  g6 {[%clk 0:00:50]} 21. Kg3 {[%clk 0:01:46]}  Ng7 {[%clk 0:00:50]} 22. Nh2 {[%clk 0:01:40]}  d5 {[%clk 0:00:49]} 23. h5 {[%clk 0:01:38]}  dxe4 {[%clk 0:00:50]} 24. Bg4 {[%clk 0:01:33]}  Nf5+ {[%clk 0:00:49]} 25. Bxf5 {[%clk 0:01:19]}  exf5 {[%clk 0:00:46]} 26. hxg6 {[%clk 0:01:18]}  fxg6 {[%clk 0:00:44]} 27. Rh1 {[%clk 0:01:16]}  Na5 {[%clk 0:00:39]} 28. Qd1 {[%clk 0:01:09]}  Qd5 {[%clk 0:00:34]} 29. Nhf1 {[%clk 0:01:06]}  Rd8 {[%clk 0:00:30]} 30. Qe2 {[%clk 0:00:55]}  Qf7 {[%clk 0:00:18]} 31. Qh2 {[%clk 0:00:55]}  Be6 {[%clk 0:00:17]} 32. Kg2 {[%clk 0:00:49]}  Nb3 {[%clk 0:00:17]} 33. Nxb3 {[%clk 0:00:45]}  cxb3 {[%clk 0:00:17]} 34. Ng3 {[%clk 0:00:41]}  Bc4 {[%clk 0:00:18]} 35. d5 {[%clk 0:00:40]}  Bxd5 {[%clk 0:00:18]} 36. Bd4 {[%clk 0:00:35]}  Bc4 {[%clk 0:00:18]} 37. Kf2 {[%clk 0:00:35]}  Rxd4 {[%clk 0:00:17]} 38. cxd4 {[%clk 0:00:34]}  Qg7 {[%clk 0:00:17]} 39. Ke3 {[%clk 0:00:33]}  Bd8 {[%clk 0:00:17]} 40. Qd2 {[%clk 0:00:33]}  Bb6 {[%clk 0:00:17]} 41. Rh6 {[%clk 0:00:31]}  Qc7 {[%clk 0:00:17]} 42. Qc3 {[%clk 0:00:30]}  Ba7 {[%clk 0:00:17]} 43. Qb4 {[%clk 0:00:27]}  Bb8 {[%clk 0:00:15]} 44. Rh4 {[%clk 0:00:24]}  Qd8 {[%clk 0:00:14]} 45. Qc5 {[%clk 0:00:21]}  Bd6 {[%clk 0:00:14]} 46. Qc6 {[%clk 0:00:17]}  Qe7 {[%clk 0:00:12]} 47. Qa8+ {[%clk 0:00:16]}  Kg7 {[%clk 0:00:12]} 48. Rh6 {[%clk 0:00:15]}  Bxf4+ {[%clk 0:00:12]} 49. Kxf4 {[%clk 0:00:11]}  Qc7+ {[%clk 0:00:07]} 50. Ke3 {[%clk 0:00:11]}  Qxg3+ {[%clk 0:00:08]} 51. Kd2 {[%clk 0:00:09]}  Qf2+ {[%clk 0:00:09]} 52. Kc3 {[%clk 0:00:06]}  Qg3+ {[%clk 0:00:09]} 53. Kb4 {[%clk 0:00:06]}  Qxg5 {[%clk 0:00:05]} 54. Rh2 {[%clk 0:00:06]}  Qe7+ {[%clk 0:00:05]} 55. Ka5 {[%clk 0:00:03]}  h5 {[%clk 0:00:05]} 0-1


[Site "https://www.chess.com"]

[Event "Titled Tuesday Blitz January 10 Late 2023"]
[White "Mikhalsky, Vladimir"]
[Black "Thomas, Anysia"]
[WhiteFideId "14144352"]
[BlackFideId "670472"]
[WhiteElo "2219"]
[BlackElo "2147"]
[Result "0-1"]
[Round "05"]
[TimeControl "180+2"]
[Date "2023.01.10"]
[WhiteClock "0:00:45"]
[BlackClock "0:00:07"]

1. e4 {[%clk 0:00:00]}  c5 {[%clk 0:00:00]} 2. Nf3 {[%clk 0:03:00]}  g6 {[%clk 0:02:59]} 3. d4 {[%clk 0:03:00]}  cxd4 {[%clk 0:03:00]} 4. Qxd4 {[%clk 0:02:59]}  Nf6 {[%clk 0:03:01]} 5. e5 {[%clk 0:02:59]}  Nc6 {[%clk 0:03:01]} 6. Qf4 {[%clk 0:02:59]}  Nd5 {[%clk 0:03:01]} 7. Qd2 {[%clk 0:02:44]}  Nb6 {[%clk 0:02:59]} 8. c4 {[%clk 0:02:44]}  Bg7 {[%clk 0:02:53]} 9. c5 {[%clk 0:02:42]}  Na4 {[%clk 0:02:39]} 10. Qc2 {[%clk 0:02:42]}  Qa5+ {[%clk 0:02:39]} 11. Bd2 {[%clk 0:02:39]}  Qxc5 {[%clk 0:01:56]} 12. Qxa4 {[%clk 0:02:38]}  Nxe5 {[%clk 0:01:53]} 13. Bc3 {[%clk 0:02:34]}  Nxf3+ {[%clk 0:01:53]} 14. gxf3 {[%clk 0:01:58]}  O-O {[%clk 0:01:23]} 15. Bxg7 {[%clk 0:01:57]}  Kxg7 {[%clk 0:01:21]} 16. Nc3 {[%clk 0:01:53]}  d5 {[%clk 0:01:22]} 17. Rd1 {[%clk 0:01:52]}  Kg8 {[%clk 0:01:13]} 18. Rxd5 {[%clk 0:01:47]}  Qb6 {[%clk 0:00:41]} 19. Rb5 {[%clk 0:01:44]}  Qe6+ {[%clk 0:00:41]} 20. Qe4 {[%clk 0:01:39]}  Qd6 {[%clk 0:00:40]} 21. Bc4 {[%clk 0:01:39]}  Bh3 {[%clk 0:00:24]} 22. Ke2 {[%clk 0:01:31]}  Rad8 {[%clk 0:00:18]} 23. Rd1 {[%clk 0:01:20]}  Qxh2 {[%clk 0:00:16]} 24. Rxb7 {[%clk 0:01:16]}  Rxd1 {[%clk 0:00:15]} 25. Nxd1 {[%clk 0:01:12]}  Qh1 {[%clk 0:00:13]} 26. Ne3 {[%clk 0:01:11]}  e6 {[%clk 0:00:12]} 27. Rxa7 {[%clk 0:01:06]}  Qc1 {[%clk 0:00:09]} 28. Qc2 {[%clk 0:01:01]}  Bf1+ {[%clk 0:00:09]} 29. Nxf1 {[%clk 0:01:00]}  Qxc2+ {[%clk 0:00:07]} 30. Ke3 {[%clk 0:00:45]}  Qxc4 {[%clk 0:00:07]} 0-1


[Site "https://www.chess.com"]